bitfinex/quotes_ETHUSD_20251213
["timestamp","ask_amount","ask_price","bid_price","bid_amount"]
[1765658097940,0.507,3109.8,3109.5,0.96604823]
[1765658098148,0.30110202,3109.7,3109.5,0.96604823]
[1765658098350,0.507,3109.8,3109.5,0.96604823]
[1765658098564,0.30109886,3109.7,3109.5,0.96604823]
[1765658098740,3.72264089,3109.8,3109.5,0.96604823]
[1765658098939,0.30109884,3109.7,3109.5,0.96604823]
[1765658099147,3.72264089,3109.8,3109.5,0.96604823]
[1765658099457,0.30109629,3109.7,3109.5,0.96604823]
[1765658099757,3.72264089,3109.8,3109.5,0.96604823]
[1765658099929,0.30109632,3109.7,3109.5,0.96604823]
[1765658100130,3.72264089,3109.8,3109.5,0.96604823]
[1765658100353,0.30109606,3109.7,3109.5,0.96604823]
[1765658100570,0.507,3109.8,3109.5,0.96604823]
[1765658100775,0.30109606,3109.7,3109.5,1.46014823]
[1765658101081,0.507,3109.8,3109.5,1.46014823]
[1765658101278,0.30109582,3109.7,3109.5,1.46014823]
[1765658101474,0.507,3109.8,3109.6,0.4885]
[1765658101682,0.30111333,3109.7,3109.6,0.4885]
[1765658104083,0.30111333,3109.7,3109.5,1.46014823]
[1765658104285,0.507,3109.8,3109.5,1.46014823]
[1765658104580,0.30117048,3109.7,3109.5,1.46014823]
[1765658104779,0.507,3109.8,3109.5,1.46014823]
[1765658104950,0.30117052,3109.7,3109.5,1.46014823]
[1765658105145,0.507,3109.8,3109.5,1.46014823]
[1765658105379,0.30116971,3109.7,3109.5,1.46014823]
[1765658105580,0.507,3109.8,3109.5,1.46014823]
[1765658105750,0.30116974,3109.7,3109.5,1.46014823]
[1765658105954,0.507,3109.8,3109.5,1.46014823]
[1765658106246,0.30116969,3109.7,3109.5,1.46014823]
[1765658106451,0.507,3109.8,3109.5,1.46014823]
[1765658106680,0.30116903,3109.7,3109.5,1.46014823]
[1765658106869,0.507,3109.8,3109.5,1.46014823]
[1765658107071,0.30116928,3109.7,3109.5,1.46014823]
[1765658107382,3.72265179,3109.8,3109.5,1.46014823]
[1765658107555,0.30116921,3109.7,3109.5,0.96604823]
[1765658107761,3.72265179,3109.8,3109.5,0.96604823]
[1765658107960,0.30116923,3109.7,3109.5,0.96604823]
[1765658108175,3.72265179,3109.8,3109.5,0.96604823]
[1765658108377,0.30116926,3109.7,3109.5,0.96604823]
[1765658108678,3.72265179,3109.8,3109.5,0.96604823]
[1765658108991,0.30116927,3109.7,3109.5,0.96604823]
[1765658109191,3.72265179,3109.8,3109.5,0.96604823]
[1765658109393,0.30116963,3109.7,3109.5,0.96604823]
[1765658109593,3.72265179,3109.8,3109.5,0.96604823]
[1765658109773,0.30116964,3109.7,3109.5,0.96604823]
[1765658110075,3.72265179,3109.8,3109.5,0.96604823]
[1765658110268,0.30116957,3109.7,3109.5,0.96604823]
[1765658110595,3.72265179,3109.8,3109.5,0.96604823]
[1765658110596,0.507,3109.8,3109.5,0.96604823]
[1765658110798,0.30117013,3109.7,3109.5,0.96604823]
[1765658110969,0.507,3109.8,3109.5,0.96604823]
[1765658111170,0.30117016,3109.7,3109.5,0.96604823]
[1765658111368,0.507,3109.8,3109.5,0.96604823]
[1765658111569,0.30117096,3109.7,3109.5,0.96604823]
[1765658111770,0.507,3109.8,3109.5,0.96604823]
[1765658111969,0.30117095,3109.7,3109.5,0.96604823]
[1765658112171,0.507,3109.8,3109.5,0.96604823]
[1765658112497,0.30117198,3109.7,3109.5,1.46014823]
[1765658112799,0.507,3109.8,3109.5,1.46014823]
[1765658112978,0.30117199,3109.7,3109.5,1.46014823]
[1765658113277,0.507,3109.8,3109.5,1.46014823]
[1765658113480,0.3011733,3109.7,3109.5,1.46014823]
[1765658113666,0.507,3109.8,3109.5,1.46014823]
[1765658113868,0.3011733,3109.7,3109.5,1.46014823]
[1765658114097,0.507,3109.8,3109.5,1.46014823]
[1765658114297,0.30117346,3109.7,3109.5,1.46014823]
[1765658114497,0.507,3109.8,3109.5,1.46014823]
[1765658114699,0.30117508,3109.7,3109.5,1.46014823]
[1765658114881,0.507,3109.8,3109.6,0.4941]
[1765658115082,0.30117508,3109.7,3109.6,0.9826]
[1765658117584,0.30117508,3109.7,3109.6,0.4885]
[1765658122687,0.80817508,3109.7,3109.6,4.17624769]
[1765658122907,0.80817508,3109.7,3109.6,4.75672298]
[1765658123523,0.80817508,3109.7,3109.6,1.54087529]
[1765658125830,0.80817929,3109.7,3109.1,3.40851332]
[1765658126014,0.30117929,3109.6,3109.3,3.2160871]
[1765658126214,0.30117929,3109.5,3109.4,0.96596424]
[1765658133358,0.30117929,3109.5,3109.4,4.18201878]
[1765658133572,0.30117929,3109.5,3109.4,0.96596424]
[1765658147755,0.77817929,3109.5,3109.4,0.96596424]
[1765658147951,1.24587929,3109.5,3109.4,0.96596424]
[1765658148261,0.77817929,3109.5,3109.4,0.96596424]
[1765658150380,0.30117929,3109.5,3109.4,0.96596424]
[1765658157087,0.30117929,3109.5,3109.4,4.18201878]
[1765658157257,0.30117929,3109.5,3109.4,0.96596424]
[1765658161904,0.30117929,3109.5,3109.4,4.18201878]
[1765658163218,0.30117929,3109.5,3109.4,0.96596424]
[1765658166803,0.30117929,3109.5,3109.4,4.18201878]
[1765658166999,0.30117929,3109.5,3109.4,0.96596424]
[1765658167962,0.30117929,3109.5,3109.4,4.18201878]
[1765658168453,0.30117929,3109.5,3109.4,0.96596424]
[1765658173916,0.30117929,3109.5,3109.4,4.18201878]
[1765658174649,0.30117929,3109.5,3109.4,0.96596424]
[1765658183641,0.30117929,3109.5,3109.4,4.18201878]
[1765658184140,0.30117929,3109.5,3109.4,0.96596424]
[1765658185269,0.30117929,3109.5,3109.4,4.18201878]
[1765658185878,0.30117929,3109.5,3109.4,0.96596424]
[1765658187071,0.30117929,3109.5,3109.4,4.18201878]
[1765658187871,0.30117929,3109.5,3109.4,0.96596424]
[1765658188747,0.30117929,3109.5,3109.4,4.18201878]
[1765658193895,0.30151989,3109.5,3109.4,4.18201878]
[1765658194586,0.30151989,3109.5,3109.4,0.96596424]
[1765658199508,0.30151989,3109.5,3109.4,4.78996424]
[1765658199904,0.30151989,3109.5,3109.4,8.00601878]
[1765658205004,0.4642,3109.8,3109.4,8.00601878]
[1765658205210,0.30154848,3109.7,3109.4,8.00601878]
[1765658205399,0.30154848,3109.6,3109.4,3.21605454]
[1765658205707,0.30154848,3109.5,3109.4,3.21605454]
[1765658206308,0.30154848,3109.5,3109.4,3.72305454]
[1765658208712,0.30154848,3109.5,3109.4,3.75024617]
[1765658209012,0.30154848,3109.5,3109.4,3.72305454]
[1765658213391,0.30154848,3109.5,3109.4,4.41698526]
[1765658215395,0.9712,3109.9,3109.4,7.6330398]
[1765658215597,0.76334431,3109.8,3109.4,7.6330398]
[1765658215798,0.30154431,3109.7,3109.4,7.1260398]
[1765658216000,0.30154431,3109.6,3109.5,0.96584918]
[1765658217414,0.30154431,3109.6,3109.5,4.78984918]
[1765658221823,0.30154431,3109.6,3109.5,8.00580029]
[1765658222022,0.30154431,3109.6,3109.5,9.19737885]
[1765658222418,0.1615,3110.2,3109.5,9.19737885]
[1765658222620,0.30147616,3110.1,3109.6,3.824]
[1765658222823,0.30147616,3110.0,3109.6,3.824]
[1765658223010,0.9688,3110.4,3109.6,3.824]
[1765658223011,0.30147616,3109.9,3109.7,2.48278044]
[1765658223215,0.4618,3110.4,3109.7,2.48278044]
[1765658223420,0.30129339,3110.3,3109.8,3.824]
[1765658223726,0.30129339,3110.2,3109.8,4.5187]
[1765658224031,0.30129339,3110.1,3109.9,3.21553747]
[1765658224238,0.30129339,3110.0,3109.9,3.91023747]
[1765658224431,0.4618,3110.3,3109.9,8.37246]
[1765658224726,0.4995,3110.0,3109.9,3.21553747]
[1765658224918,0.8006989,3110.0,3109.9,3.21553747]
[1765658225321,0.4995,3110.0,3109.9,3.71503747]
[1765658225619,0.9613,3110.0,3109.9,3.71503747]
[1765658226823,0.4995,3110.0,3109.9,3.71503747]
[1765658229147,0.4995,3110.0,3109.9,7.53903747]
[1765658229922,0.4618,3110.2,3109.9,7.53903747]
[1765658230317,0.4618,3110.2,3109.9,7.03953747]
[1765658230653,0.4618,3110.2,3110.0,0.96572792]
[1765658231760,0.4995,3110.1,3110.0,0.96572792]
[1765658232517,0.9613,3110.1,3110.0,0.96572792]
[1765658235150,0.9613,3110.1,3110.0,4.78972792]
[1765658238184,1.2621714,3110.1,3110.0,4.78972792]
[1765658238866,1.26219387,3110.1,3110.0,4.78972792]
[1765658239070,1.76819387,3110.1,3110.0,0.96572792]
[1765658239266,1.76819387,3110.1,3109.6,3.824]
[1765658239267,5.16034395,3110.1,3109.6,3.824]
[1765658239470,0.4995,3109.7,3109.6,3.824]
[1765658239662,1.30644602,3109.7,3109.1,3.21634549]
[1765658239985,0.4995,3109.4,3109.2,0.96594869]
[1765658240390,0.4995,3109.3,3109.2,0.96594869]
[1765658240885,0.9613,3109.3,3109.2,0.96594869]
[1765658251795,0.9613,3109.3,3109.2,4.1822101]
[1765658252592,0.506,3109.7,3109.2,4.1822101]
[1765658252796,0.4884,3109.5,3109.2,4.1822101]
[1765658253090,0.4884,3109.5,3109.2,3.21626141]
[1765658253294,0.4884,3109.5,3109.3,0.87816765]
[1765658253997,0.4807,3109.4,3109.3,0.87816765]
[1765658256126,0.4807,3109.4,3109.3,4.09432562]
[1765658257218,0.4807,3109.4,3109.3,0.87816765]
[1765658257830,0.9691,3109.4,3109.3,0.87816765]
[1765658263746,0.4807,3109.4,3109.3,0.87816765]
[1765658264651,0.4807,3109.4,3109.3,4.09432562]
[1765658265049,0.4884,3109.6,3109.3,4.09432562]
[1765658265342,0.30091721,3109.5,3109.3,4.09432562]
[1765658265552,0.4884,3109.6,3109.3,3.21615797]
[1765658265753,0.3010056,3109.5,3109.4,0.96602957]
[1765658266729,1.2701056,3109.5,3109.4,0.96602957]
[1765658272564,1.2701056,3109.5,3109.2,3.21621783]
[1765658272762,0.3010056,3109.4,3109.2,3.21621783]
[1765658272943,0.3010056,3109.3,3109.2,3.21621783]
[1765658274485,0.30165516,3109.3,3109.2,3.21621783]
[1765658275558,0.30165516,3109.3,3109.2,4.33848711]
[1765658276079,0.30165516,3109.3,3109.2,5.30447624]
[1765658279889,0.30165516,3109.3,3109.2,9.12847624]
[1765658283787,0.30165516,3109.3,3109.2,8.16248711]
[1765658283987,0.30165516,3109.3,3109.2,7.04021783]
[1765658284966,0.30165516,3109.3,3109.2,7.54721783]
[1765658285594,0.30165516,3109.3,3109.2,3.72321783]
[1765658291503,0.30165516,3109.3,3109.2,7.54721783]
[1765658297508,0.30165516,3109.3,3109.2,3.72321783]
[1765658303439,0.30165516,3109.3,3109.2,7.54721783]
[1765658309444,0.30165516,3109.3,3109.2,3.72321783]
[1765658315374,0.30165516,3109.3,3109.2,7.54721783]
[1765658321275,0.30165516,3109.3,3109.2,3.72321783]
[1765658327196,0.30165516,3109.3,3109.2,7.54721783]
[1765658333228,0.30165516,3109.3,3109.2,3.72321783]
[1765658335535,0.30165516,3109.3,3109.2,0.507]
[1765658335536,4.46171313,3109.3,3109.2,0.507]
[1765658335813,4.46171313,3109.3,3108.6,0.002]
[1765658335814,2.01333108,3109.3,3108.6,0.002]
[1765658336007,1.29675516,3109.2,3108.7,0.507]
[1765658336206,0.30165516,3109.1,3108.7,0.507]
[1765658336410,0.4822,3108.8,3108.7,0.507]
[1765658336589,0.4822,3108.8,3108.7,3.72377513]
[1765658345023,0.4822,3108.8,3108.7,7.54777513]
[1765658347925,0.1855,3108.9,3108.7,7.54777513]
[1765658348257,0.4881,3109.0,3108.7,7.54777513]
[1765658348396,0.4881,3109.0,3108.7,7.04077513]
[1765658348598,0.4881,3109.0,3108.7,10.25755384]
[1765658349025,0.4881,3109.0,3108.8,0.507]
[1765658350126,0.4881,3109.0,3108.9,3.21657177]
[1765658350437,0.1855,3109.1,3108.9,3.21657177]
[1765658350733,0.6736,3109.1,3108.9,3.72357177]
[1765658351122,0.4822,3109.0,3108.9,3.72357177]
[1765658352432,0.507,3109.2,3108.9,8.01657823]
[1765658352836,0.507,3109.2,3108.9,7.50957823]
[1765658352999,0.4881,3109.4,3109.0,0.58047529]
[1765658353202,0.30065733,3109.3,3109.0,0.58047529]
[1765658353402,0.9951,3109.4,3109.0,0.58047529]
[1765658353403,0.30065733,3109.2,3109.0,0.58047529]
[1765658353636,0.9951,3109.4,3109.0,0.58047529]
[1765658353849,0.30066957,3109.3,3109.1,3.21636486]
[1765658354009,0.9951,3109.4,3109.1,3.21636486]
[1765658354207,0.30066916,3109.3,3109.1,3.21636486]
[1765658354406,0.30066916,3109.2,3109.1,3.21636486]
[1765658355330,0.507,3109.5,3109.2,0.96605756]
[1765658355531,0.30070663,3109.4,3109.2,0.96605756]
[1765658355836,0.30070663,3109.3,3109.2,0.96605756]
[1765658356036,0.30070663,3109.3,3109.2,4.18231897]
[1765658363124,0.30098445,3109.3,3109.2,4.18231897]
[1765658370371,0.6808,3110.0,3109.2,8.13844876]
[1765658370577,0.30112696,3109.9,3109.2,8.13844876]
[1765658370783,0.30112696,3109.8,3109.2,7.1723912]
[1765658371063,0.30112696,3109.7,3109.3,0.9659207]
[1765658371271,0.30112696,3109.6,3109.3,0.9659207]
[1765658371440,0.4953,3109.9,3109.3,2.10138838]
[1765658371641,0.30105895,3109.8,3109.3,2.10138838]
[1765658371842,0.30105895,3109.7,3109.3,1.13546768]
[1765658372070,0.30105895,3109.6,3109.4,0.6925]
[1765658372244,0.4953,3109.9,3109.4,0.6925]
[1765658372568,0.3010024,3109.8,3109.5,3.21595111]
[1765658372863,0.3010024,3109.7,3109.5,3.21595111]
[1765658373068,0.4953,3109.9,3109.5,3.21595111]
[1765658373276,0.30100238,3109.8,3109.6,0.6925]
[1765658373471,0.30100238,3109.7,3109.6,3.90834769]
[1765658374266,1.14877166,3110.2,3109.6,7.8366341]
[1765658374470,0.30088919,3110.1,3109.6,7.8366341]
[1765658374667,0.30088919,3110.0,3109.6,7.1441341]
[1765658374972,1.64407166,3110.2,3109.7,0.96580565]
[1765658375177,0.79618903,3110.1,3109.7,0.96580565]
[1765658375472,0.6866,3109.8,3109.7,4.18154993]
[1765658375967,1.1819,3109.8,3109.7,4.18154993]
[1765658377748,1.1819,3109.8,3109.7,8.00554993]
[1765658387505,1.14877166,3110.2,3109.7,8.00554993]
[1765658387660,0.3006483,3110.1,3109.7,11.22129421]
[1765658387854,1.64407166,3110.2,3109.7,10.25548856]
[1765658388093,0.1877,3110.5,3109.8,3.824]
[1765658388301,0.6947,3110.5,3109.8,3.824]
[1765658388460,0.30062434,3110.4,3109.8,3.824]
[1765658388662,0.6947,3110.5,3109.9,1.34712328]
[1765658388881,0.3006244,3110.4,3110.0,3.824]
[1765658389163,1.19,3110.5,3110.1,3.21533069]
[1765658389573,1.19,3110.5,3110.2,0.96571549]
[1765658390012,0.6947,3110.5,3110.2,0.96571549]
[1765658390214,0.4953,3110.4,3110.2,0.96571549]
[1765658390411,0.1877,3110.5,3110.2,0.96571549]
[1765658390715,0.001,3110.6,3110.2,0.96571549]
[1765658390883,0.79583918,3110.5,3110.2,0.96571549]
[1765658391094,0.4939,3110.3,3110.2,0.96571549]
[1765658391300,0.4939,3110.3,3110.2,4.1809428]
[1765658392520,0.4939,3110.3,3110.2,8.0049428]
[1765658394079,0.4953,3110.4,3110.2,8.0049428]
[1765658394580,0.4953,3110.4,3110.2,7.03922731]
[1765658394782,0.4953,3110.4,3110.3,0.4953]
[1765658395591,0.9791,3110.4,3110.3,0.4953]
[1765658398504,0.9791,3110.4,3110.3,4.3193]
[1765658399013,0.001,3110.6,3110.3,7.53441443]
[1765658399309,0.30066582,3110.5,3110.3,7.53441443]
[1765658399480,0.001,3110.6,3110.3,7.03911443]
[1765658399681,0.30072806,3110.5,3110.4,0.12875294]
[1765658401510,0.30072806,3110.5,3110.4,3.34377351]
[1765658401719,0.001,3110.6,3110.4,4.09332767]
[1765658402506,0.001,3110.6,3110.4,3.96457473]
[1765658402900,0.001,3110.6,3110.5,0.53424078]
[1765658406214,0.001,3110.6,3110.5,3.74915799]
[1765658406515,0.001,3110.6,3110.5,4.57123126]
[1765658406833,0.001,3110.6,3110.5,8.39523126]
[1765658419832,0.4848,3110.6,3110.5,7.98972726]
[1765658420145,0.9605,3110.6,3110.5,7.16765399]
[1765658420648,0.4848,3110.6,3110.5,7.16765399]
[1765658422951,0.001,3110.6,3110.5,7.16765399]
[1765658448193,0.4549,3110.6,3110.5,7.16765399]
[1765658448360,0.9239,3110.6,3110.5,7.16765399]
[1765658449573,0.4549,3110.6,3110.5,7.16765399]
[1765658449797,0.001,3110.6,3110.5,8.33147686]
[1765658465279,0.4933,3110.6,3110.5,7.16765399]
[1765658465484,0.9908,3110.6,3110.5,7.16765399]
[1765658494010,0.001,3110.6,3110.5,7.16765399]
[1765658494582,0.4672,3110.6,3110.5,7.16765399]
[1765658494794,0.9641,3110.6,3110.5,7.16765399]
[1765658501813,0.001,3110.6,3110.5,7.16765399]
[1765658505927,0.4672,3110.6,3110.5,7.16765399]
[1765658506114,0.9641,3110.6,3110.5,7.16765399]
[1765658513620,0.4672,3110.6,3110.5,7.16765399]
[1765658516318,0.9211,3110.6,3110.5,7.16765399]
[1765658524538,0.001,3110.6,3110.5,7.16765399]
[1765658525409,0.4606,3110.6,3110.5,7.16765399]
[1765658525639,0.9145,3110.6,3110.5,7.16765399]
[1765658525828,0.4606,3110.6,3110.5,7.16765399]
[1765658532743,0.9145,3110.6,3110.5,7.16765399]
[1765658534938,0.4606,3110.6,3110.5,7.16765399]
[1765658538350,1.21599174,3110.6,3110.5,3.95273678]
[1765658538643,1.21599174,3110.6,3110.5,0.12873678]
[1765658538816,1.38839091,3110.6,3110.5,0.12873678]
[1765658541456,1.38839091,3110.6,3109.7,0.506]
[1765658541656,0.4596,3110.4,3110.3,0.96571859]
[1765658541954,0.76109174,3110.4,3110.3,0.96571859]
[1765658542141,1.21499174,3110.4,3110.3,0.96571859]
[1765658547366,0.9135,3110.4,3110.3,0.96571859]
[1765658555945,0.9135,3110.4,3110.3,4.18084253]
[1765658557778,0.4596,3110.4,3110.3,4.18084253]
[1765658560383,0.76037753,3110.4,3110.3,4.18084253]
[1765658562983,1.21427753,3110.4,3110.3,4.18084253]
[1765658567495,0.30077753,3110.4,3110.3,4.9204587]
[1765658576116,0.79857753,3110.4,3110.3,4.18084253]
[1765658576481,0.30077753,3110.4,3110.3,4.18084253]
[1765658580622,1.25687753,3110.4,3110.3,4.18084253]
[1765658583819,1.25687753,3110.4,3109.8,0.58047529]
[1765658583998,0.4978,3110.2,3109.9,6.43107494]
[1765658584204,0.4978,3110.2,3110.0,0.96576212]
[1765658584416,0.4583,3110.1,3110.0,0.96576212]
[1765658584624,0.9561,3110.1,3110.0,4.1811962]
[1765658584995,1.25743736,3110.1,3110.0,3.21543408]
[1765658586131,0.9561,3110.1,3110.0,3.21543408]
[1765658587030,1.25737888,3110.1,3110.0,3.21543408]
[1765658587229,0.9561,3110.1,3110.0,3.21543408]
[1765658588430,0.9561,3110.1,3109.9,7.99561175]
[1765658588601,0.9561,3110.0,3109.9,7.99561175]
[1765658592928,1.25726706,3110.0,3109.9,0.9561]
[1765658593226,1.25726706,3110.0,3109.5,3.2158788]
[1765658593397,0.94096706,3109.9,3109.6,3.21583786]
[1765658593599,0.30116706,3109.8,3109.6,3.21583786]
[1765658593796,0.4978,3109.7,3109.6,3.21583786]
[1765658594228,0.9561,3109.7,3109.6,3.21583786]
[1765658597033,0.9561,3109.7,3109.5,3.21595111]
[1765658597626,0.4978,3109.6,3109.5,3.21595111]
[1765658598338,0.4978,3109.6,3109.4,3.21603258]
[1765658598339,0.9561,3109.6,3109.4,3.21603258]
[1765658598509,0.4978,3109.5,3109.4,3.71383258]
[1765658599011,0.9561,3109.5,3109.4,0.4978]
[1765658599444,0.9561,3109.5,3109.3,3.21614463]
[1765658599751,0.9561,3109.4,3109.3,3.21614463]
[1765658603054,0.9561,3109.4,3109.2,3.21626141]
[1765658609346,0.9561,3109.4,3109.2,7.04026141]
[1765658610732,0.1815,3109.9,3109.2,10.25652282]
[1765658610920,0.79407586,3109.8,3109.2,10.25652282]
[1765658611138,0.30019687,3109.7,3109.2,10.25652282]
[1765658611476,0.57179538,3109.9,3109.2,10.25652282]
[1765658611675,0.4939,3109.7,3109.2,10.25652282]
[1765658618096,0.30050018,3109.6,3109.2,10.25652282]
[1765658618262,0.4939,3109.7,3109.2,10.25652282]
[1765658618463,0.30050018,3109.6,3109.2,10.25652282]
[1765658618764,0.4939,3109.7,3109.2,10.25652282]
[1765658618976,0.30050019,3109.6,3109.2,10.25652282]
[1765658619158,0.4939,3109.7,3109.2,10.25652282]
[1765658619361,0.30057411,3109.6,3109.2,10.25652282]
[1765658619562,0.4939,3109.7,3109.2,10.25652282]
[1765658619776,0.3005704,3109.6,3109.2,10.25652282]
[1765658619976,0.4939,3109.7,3109.2,10.25652282]
[1765658620167,0.3005704,3109.6,3109.2,10.25652282]
[1765658620374,0.4939,3109.7,3109.2,10.25652282]
[1765658620576,0.30066246,3109.6,3109.2,10.25652282]
[1765658620874,0.4939,3109.7,3109.2,10.25652282]
[1765658621072,0.30066247,3109.6,3109.2,10.25652282]
[1765658621282,0.30066247,3109.5,3109.2,10.25652282]
[1765658621483,0.4939,3109.7,3109.2,10.25652282]
[1765658621674,0.30078094,3109.6,3109.2,10.25652282]
[1765658621876,0.30078094,3109.5,3109.2,10.25652282]
[1765658622074,0.4939,3109.7,3109.2,10.25652282]
[1765658622273,0.3009468,3109.6,3109.2,10.25652282]
[1765658622486,0.3009468,3109.5,3109.2,10.25652282]
[1765658622686,0.4939,3109.7,3109.2,10.25652282]
[1765658622986,0.30094671,3109.6,3109.2,10.25652282]
[1765658623191,0.30094671,3109.5,3109.2,10.25652282]
[1765658623484,0.4939,3109.7,3109.2,10.25652282]
[1765658623661,0.30099938,3109.6,3109.2,10.25652282]
[1765658623987,0.30099938,3109.5,3109.2,10.25652282]
[1765658624192,0.4939,3109.7,3109.2,10.25652282]
[1765658624400,0.30105702,3109.6,3109.2,10.25652282]
[1765658624575,0.30105702,3109.5,3109.2,10.25652282]
[1765658624775,0.4939,3109.7,3109.2,10.25652282]
[1765658624976,0.301057,3109.6,3109.2,10.25652282]
[1765658625177,0.301057,3109.5,3109.2,10.25652282]
[1765658625474,0.301057,3109.4,3109.2,10.25652282]
[1765658625794,0.4939,3109.6,3109.2,10.25652282]
[1765658626123,0.30113492,3109.5,3109.2,10.25652282]
[1765658626394,0.30113492,3109.4,3109.2,10.25652282]
[1765658626576,0.4939,3109.6,3109.2,10.25652282]
[1765658626767,0.301269,3109.5,3109.2,10.25652282]
[1765658626969,0.301269,3109.4,3109.2,10.25652282]
[1765658627164,0.4939,3109.6,3109.2,10.25652282]
[1765658627467,0.30127091,3109.5,3109.2,10.25652282]
[1765658627667,0.30127091,3109.4,3109.2,10.25652282]
[1765658627868,0.4939,3109.6,3109.2,10.25652282]
[1765658628193,0.30127623,3109.5,3109.2,7.04026141]
[1765658628361,0.30127623,3109.4,3109.2,7.04026141]
[1765658628567,0.4939,3109.6,3109.2,7.04026141]
[1765658628790,0.30127802,3109.5,3109.2,7.04026141]
[1765658629092,0.30127802,3109.4,3109.2,7.04026141]
[1765658629292,0.4939,3109.6,3109.2,7.04026141]
[1765658629482,0.30133314,3109.5,3109.2,7.04026141]
[1765658629685,0.30133314,3109.4,3109.2,7.04026141]
[1765658629883,0.4939,3109.6,3109.2,7.04026141]
[1765658630090,0.30133316,3109.5,3109.2,7.04026141]
[1765658630279,0.30133316,3109.4,3109.2,7.04026141]
[1765658630479,0.4939,3109.6,3109.2,7.04026141]
[1765658630698,0.30134865,3109.5,3109.2,7.04026141]
[1765658630880,0.30134865,3109.4,3109.2,7.04026141]
[1765658631082,0.4939,3109.6,3109.2,7.04026141]
[1765658631299,0.30138638,3109.5,3109.2,7.04026141]
[1765658631500,0.30138638,3109.4,3109.2,7.04026141]
[1765658631801,0.4939,3109.6,3109.2,7.04026141]
[1765658632097,0.30138641,3109.5,3109.2,7.04026141]
[1765658632296,0.30138641,3109.4,3109.2,7.04026141]
[1765658632473,0.4939,3109.6,3109.2,7.04026141]
[1765658632674,0.30138648,3109.5,3109.2,7.04026141]
[1765658632873,0.30138648,3109.4,3109.2,7.04026141]
[1765658633173,0.4939,3109.6,3109.2,7.04026141]
[1765658633374,0.30138732,3109.5,3109.2,7.04026141]
[1765658633574,0.30138732,3109.4,3109.2,7.04026141]
[1765658633780,0.4939,3109.6,3109.2,7.04026141]
[1765658633976,0.30138783,3109.5,3109.2,7.04026141]
[1765658634172,0.30138783,3109.4,3109.2,7.04026141]
[1765658634402,0.4939,3109.6,3109.2,7.04026141]
[1765658634578,0.30138826,3109.5,3109.2,7.54726141]
[1765658634778,0.30138826,3109.4,3109.2,7.54726141]
[1765658634980,0.4939,3109.6,3109.2,7.54726141]
[1765658635180,0.30138825,3109.5,3109.2,7.54726141]
[1765658635381,0.30138825,3109.4,3109.2,7.54726141]
[1765658635605,0.4939,3109.6,3109.2,7.54726141]
[1765658635804,0.3013887,3109.5,3109.2,7.54726141]
[1765658636003,0.3013887,3109.4,3109.2,7.54726141]
[1765658636205,0.4939,3109.6,3109.2,7.54726141]
[1765658636408,0.30138873,3109.5,3109.2,7.54726141]
[1765658636708,0.30138873,3109.4,3109.2,7.54726141]
[1765658636889,0.4939,3109.6,3109.2,10.76352282]
[1765658637089,0.30138871,3109.5,3109.2,10.76352282]
[1765658637410,0.30138871,3109.4,3109.2,10.76352282]
[1765658637607,0.4939,3109.6,3109.2,10.76352282]
[1765658637809,0.30138869,3109.5,3109.2,10.76352282]
[1765658637982,0.30138869,3109.4,3109.2,10.76352282]
[1765658638307,0.9698,3109.8,3109.2,10.76352282]
[1765658638509,0.30138867,3109.7,3109.2,10.76352282]
[1765658638699,0.30138867,3109.6,3109.2,10.76352282]
[1765658638901,0.30138867,3109.5,3109.2,6.93952282]
[1765658639200,0.30138867,3109.4,3109.2,6.93952282]
[1765658639506,0.4628,3109.7,3109.2,6.93952282]
[1765658639704,0.3013887,3109.6,3109.2,6.93952282]
[1765658639899,0.3013887,3109.5,3109.2,6.93952282]
[1765658640195,0.3013887,3109.4,3109.2,6.93952282]
[1765658640400,0.4628,3109.7,3109.2,6.93952282]
[1765658640708,0.30138888,3109.6,3109.2,6.93952282]
[1765658640909,0.30138888,3109.5,3109.2,6.93952282]
[1765658641133,0.30138888,3109.4,3109.2,6.93952282]
[1765658641310,0.4628,3109.7,3109.2,6.93952282]
[1765658641518,0.30138881,3109.6,3109.2,6.93952282]
[1765658641815,0.30138872,3109.5,3109.2,6.93952282]
[1765658641993,0.30138872,3109.4,3109.2,6.93952282]
[1765658642291,0.4628,3109.7,3109.2,6.93952282]
[1765658642492,0.30138876,3109.6,3109.2,6.93952282]
[1765658642679,0.30138876,3109.5,3109.2,6.93952282]
[1765658642879,0.30138876,3109.4,3109.2,6.93952282]
[1765658643111,0.4628,3109.7,3109.2,6.93952282]
[1765658643301,0.30137857,3109.6,3109.2,6.93952282]
[1765658643500,0.30137857,3109.5,3109.2,6.93952282]
[1765658643701,0.30137857,3109.4,3109.2,6.93952282]
[1765658644000,0.4628,3109.7,3109.2,6.93952282]
[1765658644203,0.30137856,3109.6,3109.2,6.93952282]
[1765658644400,0.30137856,3109.5,3109.2,6.93952282]
[1765658644709,0.30137856,3109.4,3109.2,6.93952282]
[1765658644906,0.4628,3109.7,3109.2,10.76352282]
[1765658645113,0.30137852,3109.6,3109.2,10.76352282]
[1765658645312,0.30137852,3109.5,3109.2,10.76352282]
[1765658645478,0.30137852,3109.4,3109.2,10.76352282]
[1765658645678,0.4628,3109.7,3109.2,10.76352282]
[1765658645918,0.3013783,3109.6,3109.2,10.76352282]
[1765658646086,0.3013783,3109.5,3109.2,10.76352282]
[1765658646286,0.3013783,3109.4,3109.2,10.76352282]
[1765658646487,0.4628,3109.7,3109.2,10.76352282]
[1765658646715,0.30137841,3109.6,3109.2,10.76352282]
[1765658647006,0.30137841,3109.5,3109.2,10.76352282]
[1765658647317,0.30137841,3109.4,3109.2,10.76352282]
[1765658647609,0.4628,3109.7,3109.2,10.76352282]
[1765658647817,0.30137836,3109.6,3109.2,10.76352282]
[1765658648112,0.30137836,3109.5,3109.2,10.76352282]
[1765658648292,0.30137829,3109.4,3109.2,10.76352282]
[1765658648492,0.4628,3109.7,3109.2,10.76352282]
[1765658648813,0.30137834,3109.6,3109.2,10.76352282]
[1765658649111,0.30137834,3109.5,3109.2,7.54726141]
[1765658649305,0.30137834,3109.4,3109.2,7.54726141]
[1765658649503,0.4628,3109.6,3109.2,7.54726141]
[1765658649811,0.30137829,3109.5,3109.2,7.54726141]
[1765658650011,0.30137829,3109.4,3109.2,7.54726141]
[1765658650212,0.4628,3109.6,3109.2,7.54726141]
[1765658650412,0.30137828,3109.5,3109.2,7.54726141]
[1765658650617,0.30137828,3109.4,3109.2,10.76352282]
[1765658650912,0.4628,3109.6,3109.2,6.93952282]
[1765658651212,0.30137827,3109.5,3109.2,6.93952282]
[1765658651402,0.30137827,3109.4,3109.2,6.93952282]